fUSD/lending_fUSD_20260424
["ID","MTS","AMOUNT","RATE_DAILY","PERIOD"]
[421089027,1777007432165,-160.0,9.457e-05,2]
[421089028,1777007432175,-162.24500663,9.457e-05,2]
[421089029,1777007432184,-8242.1318,9.899e-05,2]
[421089030,1777007432195,-150.0,9.899e-05,2]
[421089031,1777007432206,-2500.0,9.9e-05,2]
[421089032,1777007432218,-178.79,9.95e-05,2]
[421089033,1777007432228,-4226.54719178,0.0001,2]
[421089034,1777007432242,-36874.27824848,0.0001,2]
[421089052,1777007438211,-1304.1126821,0.0001,2]
[421089053,1777007438371,-147984.89378432,0.0001,2]
[421089054,1777007438426,-10311.69561409,0.0001,2]
[421089055,1777007438436,-601.3616987,0.0001,2]
[421089056,1777007438446,-375.60085032,0.0001,2]
[421089057,1777007438456,-323.41911986,0.0001,2]
[421089058,1777007438792,-200.0,0.0001,2]
[421089059,1777007438828,-151.0,0.0001,2]
[421089060,1777007438840,-151.0,0.0001,2]
[421089061,1777007438849,-500.0,0.0001,2]
[421089062,1777007438859,-151.0,0.0001,2]
[421089063,1777007438868,-500.0,0.0001,2]
[421089064,1777007438876,-151.0,0.0001,2]
[421089065,1777007438893,-500.0,0.0001,2]
[421089066,1777007438902,-151.0,0.0001,2]
[421089067,1777007438913,-500.0,0.0001,2]
[421089068,1777007438922,-151.0,0.0001,2]
[421089069,1777007438933,-500.0,0.0001,2]
[421089070,1777007438943,-151.0,0.0001,2]
[421089071,1777007438953,-500.0,0.0001,2]
[421089072,1777007438963,-151.0,0.0001,2]
[421089073,1777007438972,-500.0,0.0001,2]
[421089074,1777007438982,-151.0,0.0001,2]
[421089075,1777007438991,-500.0,0.0001,2]
[421089076,1777007439002,-151.0,0.0001,2]
[421089077,1777007439016,-500.0,0.0001,2]
[421089078,1777007439025,-151.0,0.0001,2]
[421089079,1777007439035,-500.0,0.0001,2]
[421089080,1777007439047,-500.0,0.0001,2]
[421089081,1777007439057,-500.0,0.0001,2]
[421089082,1777007439066,-500.0,0.0001,2]
[421089083,1777007439075,-500.0,0.0001,2]
[421089084,1777007439084,-500.0,0.0001,2]
[421089085,1777007439093,-500.0,0.0001,2]
[421089086,1777007439103,-500.0,0.0001,2]
[421089087,1777007439112,-500.0,0.0001,2]
[421089088,1777007439122,-500.0,0.0001,2]
[421089089,1777007439132,-500.0,0.0001,2]
[421089090,1777007439141,-500.0,0.0001,2]
[421089091,1777007439150,-500.0,0.0001,2]
[421089092,1777007439160,-500.0,0.0001,2]
[421089093,1777007439170,-624.74162605,0.0001,2]
[421089094,1777007439179,-587.0,0.00010101,2]
[421089095,1777007439190,-7247.18324142,0.00010172,2]
[421089096,1777007439200,-628.30521676,0.00010507,2]
[421089097,1777007439209,-623.736,0.00010508,2]
[421089099,1777007439219,-1349.0,0.00010508,2]
[421089101,1777007439229,-1048.0,0.00010508,2]
[421089103,1777007439239,-1219.0,0.00010508,2]
[421089105,1777007439249,-927.0,0.00010508,2]
[421089107,1777007439259,-6029.0,0.00010508,2]
[421089109,1777007439268,-2475.0,0.00010508,2]
[421089111,1777007439278,-1534.0,0.00010582,2]
[421089113,1777007439287,-500.0,0.00010673,2]
[421089115,1777007439297,-641.24109622,0.00010673,2]
[421089117,1777007439306,-500.0,0.00010673,2]
[421089119,1777007439315,-500.0,0.00010673,2]
[421089121,1777007439324,-4034.4237784,0.000107,2]
[421089123,1777007439337,-14860.68728384,0.000107,2]
[421089141,1777007440527,-21301.5805,9.9e-05,2]
[421089142,1777007440548,-24102.1773864,0.000107,2]
[421089151,1777007443153,-305.81321456,0.000107,2]
[421089152,1777007443195,-4694.93067227,0.000107,2]
[421089153,1777007443250,-989.29856,0.000107,2]
[421089154,1777007443358,-887.00102635,0.000107,2]
[421089155,1777007446559,-13004.66814329,0.000107,2]
[421089761,1777008632256,-530.57794545,8.833e-05,2]
[421089762,1777008632268,-1638.9312025,8.833e-05,2]
[421089763,1777008632312,-88.28807005,8.833e-05,2]
[421089764,1777008632322,-250.0,8.878e-05,2]
[421089765,1777008632331,-300.0,8.9e-05,2]
[421089766,1777008632341,-765.56931867,8.9e-05,2]
[421089767,1777008632355,-434.43068133,8.9e-05,2]
[421089768,1777008632364,-300.0,8.9e-05,2]
[421089769,1777008632375,-150.0,8.901e-05,2]
[421089770,1777008632386,-150.0,8.901e-05,2]
[421089771,1777008632396,-150.0,8.901e-05,2]
[421089772,1777008632406,-150.0,8.901e-05,2]
[421089773,1777008632415,-150.0,8.901e-05,2]
[421089774,1777008632425,-150.0,8.901e-05,2]
[421089775,1777008632435,-150.8369207,8.901e-05,2]
[421089776,1777008632445,-150.0,8.901e-05,2]
[421089777,1777008632455,-228.14003435,8.901e-05,2]
[421089778,1777008632464,-150.0,8.901e-05,2]
[421089779,1777008632474,-150.0,8.901e-05,2]
[421089780,1777008632483,-2500.0,8.916e-05,2]
[421089781,1777008632493,-200.45389958,8.931e-05,2]
[421089782,1777008632504,-54.93804666,8.931e-05,2]
[421089783,1777008632516,-95.06195334,8.931e-05,2]
[421089784,1777008632526,-2500.0,8.943e-05,2]
[421089785,1777008632536,-131.46688369,8.943e-05,2]
[421089786,1777008632548,-271.17317545,8.943e-05,2]
[421089787,1777008632560,-654.72900572,8.943e-05,2]
[421089788,1777008632575,-407.7875021,8.943e-05,2]
[421089789,1777008632590,-1034.84343304,8.943e-05,2]
[421089790,1777008632600,-967.20313645,8.943e-05,2]
[421089791,1777008632611,-689.16136204,8.943e-05,2]
[421089794,1777008638465,-389.79830645,8.943e-05,2]
[421089795,1777008638521,-453.83719506,8.943e-05,2]
[421089796,1777008638531,-150.0,8.961e-05,2]
[421089797,1777008638540,-150.0,8.991e-05,2]
[421089798,1777008638550,-150.0,9.021e-05,2]
[421089799,1777008638559,-150.0,9.051e-05,2]
[421089800,1777008638568,-150.0,9.081e-05,2]
[421089801,1777008638578,-150.0,9.111e-05,2]
[421089802,1777008638588,-138.99200494,9.124e-05,2]
[421089803,1777008638634,-946.00799506,9.124e-05,2]
[421089804,1777008638644,-150.0,9.141e-05,2]
[421089805,1777008638653,-150.0,9.171e-05,2]
[421089806,1777008638663,-150.0,9.201e-05,2]
[421089807,1777008638672,-150.0,9.231e-05,2]
[421089808,1777008638682,-150.0,9.231e-05,2]
[421089809,1777008638692,-150.0,9.231e-05,2]
[421089810,1777008638702,-150.0,9.261e-05,2]
[421089811,1777008638711,-150.0,9.291e-05,2]
[421089812,1777008638721,-150.0,9.321e-05,2]
[421089813,1777008638732,-150.0,9.351e-05,2]
[421089814,1777008638743,-150.0,9.381e-05,2]
[421089815,1777008638753,-150.0,9.396e-05,2]
[421089816,1777008638764,-150.0,9.396e-05,2]
[421089817,1777008638774,-150.0,9.396e-05,2]
[421089818,1777008638783,-150.0,9.411e-05,2]
[421089819,1777008638792,-150.0,9.415e-05,2]
[421089820,1777008638802,-200.45389956,9.416e-05,2]
[421089821,1777008638812,-150.0,9.441e-05,2]
[421089822,1777008638822,-150.0,9.471e-05,2]
[421089823,1777008638831,-150.0,9.501e-05,2]
[421089824,1777008638840,-500.0,9.531e-05,2]
[421089825,1777008638850,-150.0,9.531e-05,2]
[421089826,1777008638860,-150.0,9.561e-05,2]
[421089827,1777008638870,-150.0,9.561e-05,2]
[421089828,1777008638879,-150.0,9.561e-05,2]
[421089829,1777008638889,-150.0,9.591e-05,2]
[421089830,1777008638900,-150.0,9.621e-05,2]
[421089831,1777008638910,-150.0,9.651e-05,2]
[421089832,1777008638920,-150.0,9.681e-05,2]
[421089833,1777008638930,-150.0,9.711e-05,2]
[421089834,1777008638940,-150.0,9.741e-05,2]
[421089835,1777008638949,-250.0,9.742e-05,2]
[421089836,1777008638959,-150.0,9.771e-05,2]
[421089837,1777008638969,-420.0,9.79e-05,2]
[421089838,1777008638979,-1236.0,9.79e-05,2]
[421089839,1777008638988,-2500.0,9.792e-05,2]
[421089840,1777008638998,-250.0,9.792e-05,2]
[421089841,1777008639008,-250.0,9.799e-05,2]
[421089842,1777008639017,-4649.7308,9.8e-05,2]
[421089843,1777008639028,-5000.0,9.8e-05,2]
[421089845,1777008639037,-2500.0,9.8e-05,2]
[421089847,1777008639046,-17168.09931739,9.8e-05,2]
[421089848,1777008639059,-4131.57449147,9.8e-05,2]
[421089849,1777008639070,-650.24869359,9.8e-05,2]
[421089850,1777008639081,-55440.70824182,9.8e-05,2]
[421089853,1777008639093,-14860.68728384,9.8e-05,2]
[421089855,1777008639104,-909.5497928,9.8e-05,2]
[421089856,1777008640812,-868.0,9.267e-05,2]
[421089857,1777008640821,-42006.04108691,9.8e-05,2]
[421089858,1777008640924,-2971.80031507,9.8e-05,2]
[421089859,1777008640982,-380.05376625,9.8e-05,2]
[421089860,1777008641041,-2943.95635846,9.8e-05,2]
[421089861,1777008641052,-5239.89376426,9.8e-05,2]
[421089862,1777008641063,-745.1344488,9.8e-05,2]
[421089877,1777008643386,-982.07925712,9.8e-05,2]
[421089878,1777008643495,-522.62702627,9.8e-05,2]
[421089879,1777008643658,-2300.18457912,9.8e-05,2]
[421089880,1777008643727,-1220.52685329,9.8e-05,2]
[421089881,1777008643739,-343.10411232,9.8e-05,2]
[421089882,1777008643753,-104015.11371287,9.8e-05,2]
[421089883,1777008643765,-387.5,9.8e-05,2]
[421089884,1777008643777,-1141.95986912,9.8e-05,2]
[421089889,1777008646773,-1755.78002667,9.8e-05,2]
[421089890,1777008646905,-136326.79495429,9.8e-05,2]
[421089891,1777008646917,-625.54012998,9.8e-05,2]
[421089892,1777008647018,-1176.41466757,9.8e-05,2]
[421089893,1777008647029,-289.53899997,9.8e-05,2]
[421090001,1777009159119,150.50638482,0.000126,15]
[421090002,1777009368431,150.0,0.000165,120]
[421090057,1777009831557,-300.0,8.654e-05,2]
[421090058,1777009831567,-154.11355957,8.655e-05,2]
[421090059,1777009831576,-154.18753749,8.655e-05,2]
[421090060,1777009831585,-272.37824658,8.655e-05,2]
[421090061,1777009831594,-153.51184745,8.655e-05,2]
[421090062,1777009831603,-150.0,8.655e-05,2]
[421090063,1777009831613,-150.0,8.655e-05,2]
[421090064,1777009831622,-150.0,8.655e-05,2]
[421090065,1777009831631,-150.0,8.655e-05,2]
[421090066,1777009831641,-250.0,8.735e-05,2]
[421090067,1777009831650,-1814.1397296,8.815e-05,2]
[421090068,1777009831661,-388.8323745,8.815e-05,2]
[421090069,1777009831672,-297.0278959,8.815e-05,2]
[421090070,1777009831681,-161.41957739,8.93e-05,2]
[421090071,1777009831692,-154.04996349,8.93e-05,2]
[421090072,1777009831702,-200.45389956,8.975e-05,2]
[421090073,1777009831712,-150.0,8.975e-05,2]
[421090074,1777009831721,-702.4569648,9.231e-05,2]
[421090075,1777009831733,-1797.5430352,9.231e-05,2]
[421090076,1777009831742,-614.57219075,9.231e-05,2]
[421090077,1777009831754,-1885.42780925,9.231e-05,2]
[421090078,1777009831764,-2500.0,9.231e-05,2]
[421090079,1777009831774,-150.0,9.296e-05,2]
[421090080,1777009831783,-699.0,9.483e-05,2]
[421090081,1777009831792,-381.0,9.502e-05,2]
[421090082,1777009831802,-651.90910822,9.516e-05,2]
[421090083,1777009831815,-1848.09089178,9.516e-05,2]
[421090084,1777009831825,-102.0831412,9.519e-05,2]
[421090085,1777009831845,-317.9168588,9.519e-05,2]
[421090086,1777009831854,-2500.0,9.52e-05,2]
[421090087,1777009831864,-250.0,9.52e-05,2]
[421090088,1777009831873,-683.0,9.599e-05,2]
[421090089,1777009831887,-150.0,9.614e-05,2]
[421090091,1777009831898,-500.0,9.615e-05,2]
[421090093,1777009831908,-374.9391058,9.615e-05,2]
[421090095,1777009831919,-125.91146964,9.615e-05,2]
[421090097,1777009831929,-175.57104309,9.615e-05,2]
[421090100,1777009831940,-324.42895691,9.615e-05,2]
[421090102,1777009831950,-250.38188056,9.615e-05,2]
[421090104,1777009831961,-249.61811944,9.615e-05,2]
[421090106,1777009831971,-500.0,9.615e-05,2]
[421090108,1777009831980,-315.54415724,9.615e-05,2]
[421090110,1777009831992,-184.45584276,9.615e-05,2]
[421090112,1777009832001,-500.0,9.615e-05,2]
[421090114,1777009832010,-86.22415724,9.615e-05,2]
[421090117,1777009832026,-413.77584276,9.615e-05,2]
[421090119,1777009832035,-500.0,9.615e-05,2]
[421090121,1777009832045,-228.86713502,9.615e-05,2]
[421090123,1777009832057,-341.91295541,9.615e-05,2]
[421090125,1777009832067,-500.0,9.615e-05,2]
[421090127,1777009832076,-224.30155383,9.615e-05,2]
[421090129,1777009832086,-500.0,9.615e-05,2]
[421090131,1777009832096,-500.0,9.615e-05,2]
[421090133,1777009832105,-500.0,9.615e-05,2]
[421090135,1777009832116,-500.0,9.615e-05,2]
[421090137,1777009832126,-500.0,9.615e-05,2]
[421090139,1777009832136,-500.0,9.615e-05,2]
[421090142,1777009832146,-500.0,9.615e-05,2]
[421090144,1777009832156,-500.0,9.615e-05,2]
[421090146,1777009832165,-500.0,9.615e-05,2]
[421090148,1777009832175,-500.0,9.615e-05,2]
[421090150,1777009832185,-500.0,9.615e-05,2]
[421090152,1777009832195,-500.0,9.615e-05,2]
[421090154,1777009832205,-500.0,9.615e-05,2]
[421090156,1777009832215,-500.0,9.615e-05,2]
[421090158,1777009832224,-500.0,9.615e-05,2]
[421090160,1777009832234,-500.0,9.615e-05,2]
[421090162,1777009832243,-577.72486387,9.615e-05,2]
[421090164,1777009832252,-500.0,9.615e-05,2]
[421090166,1777009832262,-500.0,9.615e-05,2]
[421090168,1777009832271,-500.0,9.615e-05,2]
[421090170,1777009832281,-500.0,9.615e-05,2]
[421090172,1777009832290,-500.0,9.615e-05,2]
[421090174,1777009832299,-500.0,9.615e-05,2]
[421090176,1777009832308,-500.0,9.615e-05,2]
[421090178,1777009832317,-500.0,9.615e-05,2]
[421090180,1777009832327,-500.0,9.615e-05,2]
[421090182,1777009832336,-486.6034616,9.615e-05,2]
[421090184,1777009832348,-13.3965384,9.615e-05,2]
[421090185,1777009832358,-500.0,9.615e-05,2]
[421090186,1777009832367,-500.0,9.615e-05,2]
[421090187,1777009832377,-500.0,9.615e-05,2]
[421090188,1777009832386,-376.53110822,9.615e-05,2]
[421090189,1777009832394,-500.0,9.615e-05,2]
[421090190,1777009832404,-201.49835127,9.615e-05,2]
[421090191,1777009832413,-24.67527899,9.615e-05,2]
[421090200,1777009837691,-475.32472101,9.615e-05,2]
[421090201,1777009837701,-95.864549,9.615e-05,2]
[421090202,1777009837713,-404.135451,9.615e-05,2]
[421090203,1777009837723,-500.0,9.615e-05,2]
[421090204,1777009837733,-500.0,9.615e-05,2]
[421090205,1777009837743,-500.0,9.615e-05,2]
[421090206,1777009837753,-500.0,9.615e-05,2]
[421090207,1777009837762,-500.0,9.615e-05,2]
[421090208,1777009837772,-500.0,9.615e-05,2]
[421090209,1777009837781,-500.0,9.615e-05,2]
[421090210,1777009837791,-500.0,9.615e-05,2]
[421090211,1777009837801,-550.0,9.615e-05,2]
[421090212,1777009837811,-500.0,9.615e-05,2]
[421090213,1777009837820,-500.0,9.615e-05,2]
[421090214,1777009837830,-500.0,9.615e-05,2]
[421090215,1777009837840,-500.0,9.615e-05,2]
[421090216,1777009837851,-500.0,9.615e-05,2]
[421090217,1777009837861,-500.0,9.615e-05,2]
[421090218,1777009837871,-500.0,9.615e-05,2]
[421090219,1777009837881,-500.0,9.615e-05,2]
[421090220,1777009837891,-500.0,9.615e-05,2]
[421090221,1777009837900,-500.0,9.615e-05,2]
[421090222,1777009837910,-500.0,9.615e-05,2]
[421090223,1777009837920,-500.0,9.615e-05,2]
[421090224,1777009837929,-500.0,9.615e-05,2]
[421090225,1777009837943,-500.0,9.615e-05,2]
[421090226,1777009837953,-500.0,9.615e-05,2]
[421090227,1777009837964,-500.0,9.615e-05,2]
[421090228,1777009837973,-285.95976343,9.616e-05,2]
[421090229,1777009837983,-42200.61302739,9.616e-05,2]
[421090230,1777009838523,-14860.68728384,9.616e-05,2]
[421090231,1777009838542,-4097.43696543,9.616e-05,2]
[421090232,1777009838554,-2484.94865119,9.616e-05,2]
[421090233,1777009838601,-1150.03513351,9.616e-05,2]
[421090234,1777009838612,-330.47737862,9.616e-05,2]
[421090238,1777009840005,-1208.41684316,9.616e-05,2]
[421090239,1777009840017,-3056.19022377,9.616e-05,2]
[421090240,1777009840029,-4323.43327946,9.616e-05,2]
[421090241,1777009840164,-1738.02322196,9.616e-05,2]
[421090242,1777009840176,-1127.06611192,9.616e-05,2]
[421090243,1777009840218,-3302.40057009,9.616e-05,2]
[421090244,1777009840273,-407.14081359,9.616e-05,2]
[421090245,1777009840285,-564.11572434,9.616e-05,2]
[421090246,1777009840297,-8441.88632382,9.616e-05,2]
[421090247,1777009840309,-504.38,9.616e-05,2]
[421090258,1777009842648,-33196.07213842,9.616e-05,2]
[421090259,1777009842661,-26783.49026162,9.616e-05,2]
[421090260,1777009842673,-12723.12310987,9.616e-05,2]
[421090261,1777009842965,-343.07272125,9.616e-05,2]
[421090271,1777009845962,-8574.70448286,9.616e-05,2]
[421090272,1777009845974,-51869.95948758,9.616e-05,2]
[421090273,1777009846015,-86587.79342541,9.616e-05,2]
[421090274,1777009846071,-60551.55419912,9.616e-05,2]
[421090275,1777009846180,-1295.79346964,9.616e-05,2]
[421090276,1777009846192,-5414.6172557,9.616e-05,2]
[421090361,1777011031831,-285.95976343,8.556e-05,2]
[421090363,1777011031842,-119.25086333,8.884e-05,2]
[421090365,1777011031885,-51.88913667,8.884e-05,2]
[421090366,1777011031896,-228.19,9.227e-05,2]
[421090367,1777011031906,-578.0,9.345e-05,2]
[421090368,1777011031915,-300.0,9.415e-05,2]
[421090369,1777011031926,-2500.0,9.416e-05,2]
[421090370,1777011031936,-1200.0,9.433e-05,2]
[421090371,1777011031945,-1100.0,9.434e-05,2]
[421090372,1777011031954,-208.0,9.434e-05,2]
[421090373,1777011031965,-150.0,9.504e-05,2]
[421090374,1777011031975,-13291.97486356,9.505e-05,2]
[421090375,1777011031986,-343.29292514,9.505e-05,2]
[421090376,1777011031997,-868.52832,9.505e-05,2]
[421090377,1777011032008,-18222.90863187,9.505e-05,2]
[421090378,1777011032023,-1567.29210927,9.505e-05,2]
[421090379,1777011032034,-8851.01212348,9.505e-05,2]
[421090380,1777011032048,-1870.88949691,9.505e-05,2]
[421090381,1777011032063,-1015.04698736,9.505e-05,2]
[421090382,1777011032075,-333.2607817,9.505e-05,2]
[421090383,1777011032088,-395.25347582,9.505e-05,2]
[421090410,1777011039233,-843.06580888,9.505e-05,2]
[421090412,1777011039243,-3115.225,9.515e-05,2]
[421090414,1777011039253,-228.091,9.515e-05,2]
[421090416,1777011039262,-500.0,9.515e-05,2]
[421090418,1777011039272,-500.0,9.515e-05,2]
[421090420,1777011039281,-191.04884589,9.515e-05,2]
[421090422,1777011039291,-500.0,9.515e-05,2]
[421090424,1777011039300,-500.0,9.515e-05,2]
[421090426,1777011039309,-500.0,9.515e-05,2]
[421090428,1777011039318,-500.0,9.515e-05,2]
[421090431,1777011039328,-500.0,9.515e-05,2]
[421090434,1777011039337,-500.0,9.515e-05,2]
[421090437,1777011039346,-500.0,9.515e-05,2]
[421090440,1777011039356,-500.0,9.515e-05,2]
[421090442,1777011039366,-500.0,9.515e-05,2]
[421090445,1777011039375,-500.0,9.515e-05,2]
[421090447,1777011039384,-500.0,9.515e-05,2]
[421090449,1777011039394,-500.0,9.515e-05,2]
[421090451,1777011039403,-500.0,9.515e-05,2]
[421090453,1777011039413,-500.0,9.515e-05,2]
[421090455,1777011039422,-500.0,9.515e-05,2]
[421090457,1777011039432,-500.0,9.515e-05,2]
[421090459,1777011039441,-500.0,9.515e-05,2]
[421090461,1777011039450,-221.49439229,9.515e-05,2]
[421090463,1777011039459,-500.0,9.515e-05,2]
[421090465,1777011039469,-500.0,9.515e-05,2]
[421090467,1777011039478,-500.0,9.515e-05,2]
[421090469,1777011039488,-500.0,9.515e-05,2]
[421090471,1777011039498,-500.0,9.515e-05,2]
[421090473,1777011039507,-500.0,9.515e-05,2]
[421090475,1777011039516,-500.0,9.515e-05,2]
[421090477,1777011039526,-500.0,9.515e-05,2]
[421090479,1777011039535,-500.0,9.515e-05,2]
[421090481,1777011039544,-500.0,9.515e-05,2]
[421090483,1777011039553,-500.0,9.515e-05,2]
[421090485,1777011039562,-300.0,9.515e-05,2]
[421090487,1777011039572,-613.57177575,9.515e-05,2]
[421090489,1777011039581,-191.58906154,9.515e-05,2]
[421090491,1777011039591,-174.53112116,9.515e-05,2]
[421090494,1777011039601,-250.0,9.515e-05,2]
[421090496,1777011039610,-28362.7557,9.516e-05,2]
[421090498,1777011039620,-2000.0,9.516e-05,2]
[421090500,1777011039629,-3949.33553631,9.516e-05,2]
[421090502,1777011039641,-1050.66446369,9.516e-05,2]
[421090504,1777011039650,-13810.02282015,9.516e-05,2]
[421090506,1777011039662,-446.26987052,9.516e-05,2]
[421090509,1777011039681,-335.94300056,9.516e-05,2]
[421090512,1777011039692,-78035.0,9.516e-05,2]
[421090514,1777011039704,-1230.72968212,9.516e-05,2]
[421090556,1777011040215,-723.41060399,9.516e-05,2]
[421090557,1777011040227,-1386.70499995,9.516e-05,2]
[421090558,1777011040571,-356.90157413,9.516e-05,2]
[421090559,1777011040638,-277.1987,9.516e-05,2]
[421090560,1777011040744,-249204.79304797,9.516e-05,2]
[421090561,1777011040798,-622.72194158,9.516e-05,2]
[421090562,1777011040809,-2878.09324054,9.516e-05,2]
[421090583,1777011043010,-630.07538901,9.516e-05,2]
[421090585,1777011043022,-931.86771549,9.516e-05,2]
[421090591,1777011043170,-5038.18168835,9.516e-05,2]
[421090592,1777011045260,-841.64006429,9.516e-05,2]
[421090593,1777011045314,-41049.2077956,9.516e-05,2]
[421090596,1777011046010,-76979.92044294,9.516e-05,2]
[421090597,1777011046118,-41498.27906854,9.516e-05,2]
[421090598,1777011046132,-6245.44649934,9.516e-05,2]
[421090599,1777011046173,-760.0,9.516e-05,2]
[421090600,1777011046185,-5254.13617463,9.516e-05,2]
[421090601,1777011046279,-20592.60526196,9.516e-05,2]
[421090602,1777011046291,-130796.03798309,9.516e-05,2]
[421090603,1777011046491,-494.5,9.516e-05,2]
[421090604,1777011046546,-8999.99999353,9.516e-05,2]
[421090605,1777011046558,-7142.08568629,9.516e-05,2]
[421090634,1777011844803,600.0,0.00010138,54]
[421090635,1777011844886,600.0,9.216e-05,54]
[421090636,1777011845000,600.0,9.274e-05,54]
[421090637,1777011845093,490.5165749,9.274e-05,54]
[421090638,1777011845447,109.4834251,9.274e-05,54]
[421090639,1777011845495,288.43981495,9.274e-05,54]
[421090640,1777011845525,311.56018505,9.274e-05,54]
[421090643,1777011904117,600.0,0.00010137,54]
[421090644,1777011904212,600.0,9.216e-05,54]
[421090645,1777011904303,600.0,9.235e-05,54]
[421090646,1777011904412,600.0,9.235e-05,54]
[421090647,1777011904528,388.43981495,9.235e-05,54]
[421090648,1777011904560,211.56018505,9.235e-05,54]
[421090649,1777011963749,600.0,9.222e-05,54]
[421090650,1777011963844,600.0,8.395e-05,54]
[421090651,1777011963942,600.0,8.429e-05,54]
[421090652,1777011964046,600.0,8.429e-05,54]
[421090653,1777011964146,388.43981495,8.429e-05,54]
[421090654,1777011964172,211.56018505,8.429e-05,54]
[421090655,1777012024614,600.0,9.222e-05,54]
[421090656,1777012024770,600.0,8.384e-05,54]
[421090657,1777012025043,600.0,8.411e-05,54]
[421090658,1777012025081,280.57581305,8.411e-05,54]
[421090659,1777012025109,319.42418695,8.411e-05,54]
[421090660,1777012026969,600.0,8.411e-05,54]
[421090663,1777012083558,600.0,9.222e-05,54]
[421090664,1777012083840,600.0,8.384e-05,54]
[421090665,1777012083942,600.0,8.411e-05,54]
[421090666,1777012084067,600.0,8.411e-05,54]
[421090667,1777012085521,600.0,8.411e-05,54]
[421090668,1777012143514,600.0,9.221e-05,54]
[421090669,1777012143595,480.57581305,8.383e-05,54]
[421090670,1777012143616,119.42418695,8.383e-05,54]
[421090671,1777012143678,30.57581305,8.411e-05,54]
[421090676,1777012232214,-343.27753254,8.372e-05,2]
[421090677,1777012232223,-252.0,8.372e-05,2]
[421090678,1777012232232,-109.87672379,8.377e-05,54]
[421090679,1777012232243,-490.12327621,8.377e-05,54]
[421090680,1777012232253,-768.0,8.383e-05,2]
[421090681,1777012232262,-51.56436745,8.383e-05,2]
[421090682,1777012232276,-434.43563255,8.383e-05,2]
[421090683,1777012232285,-150.00000001,8.384e-05,2]
[421090684,1777012232294,-150.0,8.384e-05,2]
[421090685,1777012232304,-150.0,8.384e-05,2]
[421090686,1777012232313,-150.0,8.384e-05,2]
[421090687,1777012232322,-150.0,8.384e-05,2]
[421090688,1777012232331,-111.47923054,8.384e-05,2]
[421090689,1777012232342,-38.52076946,8.384e-05,2]
[421090690,1777012232351,-150.0,8.384e-05,2]
[421090691,1777012232360,-2612.44584202,8.384e-05,2]
[421090692,1777012232372,-520.56951686,8.384e-05,2]
[421090693,1777012232381,-150.0,8.406e-05,2]
[421090694,1777012232391,-569.42418695,8.411e-05,54]
[421090695,1777012232400,-395.37117616,8.411e-05,54]
[421090696,1777012232413,-204.62882384,8.411e-05,54]
[421090697,1777012232422,-600.0,8.411e-05,54]
[421090698,1777012232431,-150.0,8.429e-05,2]
[421090699,1777012232441,-150.0,8.452e-05,2]
[421090700,1777012232451,-150.0,8.474e-05,2]
[421090701,1777012232460,-150.0,8.497e-05,2]
[421090702,1777012232471,-150.0,8.52e-05,2]
[421090703,1777012232481,-150.0,8.543e-05,2]
[421090704,1777012232493,-150.0,8.565e-05,2]
[421090705,1777012232503,-150.0,8.588e-05,2]
[421090706,1777012232514,-619.0,8.591e-05,2]
[421090707,1777012232528,-150.0,8.611e-05,2]
[421090708,1777012232539,-150.0,8.633e-05,2]
[421090709,1777012232549,-1933.0,8.647e-05,2]
[421090710,1777012232561,-150.0,8.656e-05,2]
[421090711,1777012232572,-491.0,8.665e-05,2]
[421090712,1777012232583,-150.0,8.679e-05,2]
[421090713,1777012232593,-250.0,8.688e-05,2]
[421090714,1777012232605,-150.0,8.702e-05,2]
[421090715,1777012232621,-150.0,8.724e-05,2]
[421090716,1777012232633,-150.0,8.747e-05,2]
[421090717,1777012232644,-150.0,8.77e-05,2]
[421090718,1777012232656,-150.0,8.77e-05,2]
[421090719,1777012232667,-150.0,8.793e-05,2]
[421090720,1777012232679,-150.0,8.815e-05,2]
[421090721,1777012232690,-2856.6,8.815e-05,2]
[421090722,1777012232701,-2856.6,8.815e-05,2]
[421090723,1777012232711,-150.0,8.838e-05,2]
[421090724,1777012232724,-150.0,8.861e-05,2]